[Event "Titled Tuesday Blitz March 15 Early 2022"]
[White "Spitzl, Vinzent"]
[Black "Perez Gormaz, Matias"]
[WhiteFideId "12901253"]
[BlackFideId "3406342"]
[WhiteElo "2160"]
[BlackElo "2327"]
[Result "0-1"]
[Round "10"]
[TimeControl "180+1"]
[Date "2022.03.15"]
[WhiteClock "0:01:17"]
[BlackClock "0:02:23"]

1. e4 {[%clk 0:02:59]}  c5 {[%clk 0:03:00]} 2. Nf3 {[%clk 0:02:58]}  d6 {[%clk 0:03:01]} 3. d4 {[%clk 0:02:56]}  cxd4 {[%clk 0:03:02]} 4. Nxd4 {[%clk 0:02:56]}  Nf6 {[%clk 0:03:02]} 5. Nc3 {[%clk 0:02:55]}  a6 {[%clk 0:03:03]} 6. Be2 {[%clk 0:02:50]}  e5 {[%clk 0:03:04]} 7. Nb3 {[%clk 0:02:48]}  Be7 {[%clk 0:03:04]} 8. Bg5 {[%clk 0:02:48]}  Be6 {[%clk 0:03:04]} 9. Bxf6 {[%clk 0:02:47]}  Bxf6 {[%clk 0:03:05]} 10. Qd3 {[%clk 0:02:46]}  Be7 {[%clk 0:03:01]} 11. O-O {[%clk 0:02:40]}  Nd7 {[%clk 0:03:02]} 12. Rad1 {[%clk 0:02:39]}  Nf6 {[%clk 0:02:59]} 13. Nd5 {[%clk 0:02:27]}  Nxd5 {[%clk 0:02:57]} 14. exd5 {[%clk 0:02:27]}  Bd7 {[%clk 0:02:58]} 15. c4 {[%clk 0:02:25]}  O-O {[%clk 0:02:57]} 16. c5 {[%clk 0:02:21]}  f5 {[%clk 0:02:51]} 17. f4 {[%clk 0:01:42]}  e4 {[%clk 0:02:45]} 18. Qe3 {[%clk 0:01:38]}  Rc8 {[%clk 0:02:41]} 19. c6 {[%clk 0:01:23]}  bxc6 {[%clk 0:02:38]} 20. dxc6 {[%clk 0:01:23]}  Rxc6 {[%clk 0:02:31]} 21. Nd4 {[%clk 0:01:22]}  Qb6 {[%clk 0:02:26]} 22. Bc4+ {[%clk 0:01:17]}  Rxc4 {[%clk 0:02:23]} 0-1


[Site "https://www.chess.com"]

[Event "Titled Tuesday Blitz March 15 Early 2022"]
[White "Szpar, Milosz"]
[Black "Pajeken, Jakob Leon"]
[WhiteFideId "1184989"]
[BlackFideId "12942839"]
[WhiteElo "2447"]
[BlackElo "2351"]
[Result "1-0"]
[Round "10"]
[TimeControl "180+1"]
[Date "2022.03.15"]
[WhiteClock "0:02:50"]
[BlackClock "0:02:19"]

1. e4 {[%clk 0:02:59]}  e5 {[%clk 0:02:54]} 2. Nf3 {[%clk 0:02:59]}  Nc6 {[%clk 0:02:48]} 3. Bb5 {[%clk 0:02:58]}  a6 {[%clk 0:02:48]} 4. Ba4 {[%clk 0:02:58]}  Nf6 {[%clk 0:02:47]} 5. d3 {[%clk 0:02:59]}  d6 {[%clk 0:02:45]} 6. c4 {[%clk 0:02:58]}  Nd7 {[%clk 0:02:42]} 7. Nc3 {[%clk 0:02:58]}  Nc5 {[%clk 0:02:41]} 8. h3 {[%clk 0:02:57]}  Nxa4 {[%clk 0:02:35]} 9. Qxa4 {[%clk 0:02:58]}  Bd7 {[%clk 0:02:33]} 10. O-O {[%clk 0:02:58]}  Qf6 {[%clk 0:02:25]} 11. Nd5 {[%clk 0:02:56]}  Qd8 {[%clk 0:02:24]} 12. b4 {[%clk 0:02:51]}  b5 {[%clk 0:02:18]} 13. cxb5 {[%clk 0:02:50]}  axb5 {[%clk 0:02:19]} 14. Qxa8 {[%clk 0:02:50]} 1-0


[Site "https://www.chess.com"]

[Event "Titled Tuesday Blitz March 15 Early 2022"]
[White "Tanenbaum, Zachary"]
[Black "Khabinets, Ivan"]
[WhiteFideId "2060850"]
[BlackFideId "14115980"]
[WhiteElo "2168"]
[BlackElo "2114"]
[Result "1/2-1/2"]
[Round "10"]
[TimeControl "180+1"]
[Date "2022.03.15"]
[WhiteClock "0:00:04"]
[BlackClock "0:01:00"]

1. e4 {[%clk 0:03:00]}  c5 {[%clk 0:03:00]} 2. Nf3 {[%clk 0:03:01]}  d6 {[%clk 0:03:00]} 3. d4 {[%clk 0:03:01]}  cxd4 {[%clk 0:03:01]} 4. Nxd4 {[%clk 0:03:01]}  e5 {[%clk 0:03:02]} 5. Bb5+ {[%clk 0:03:00]}  Bd7 {[%clk 0:03:02]} 6. Bxd7+ {[%clk 0:03:00]}  Qxd7 {[%clk 0:03:03]} 7. Nf5 {[%clk 0:02:59]}  Nf6 {[%clk 0:03:04]} 8. Nc3 {[%clk 0:02:58]}  Nxe4 {[%clk 0:03:04]} 9. Nxg7+ {[%clk 0:02:58]}  Bxg7 {[%clk 0:03:04]} 10. Nxe4 {[%clk 0:02:59]}  d5 {[%clk 0:03:04]} 11. Ng3 {[%clk 0:02:53]}  O-O {[%clk 0:03:03]} 12. Nh5 {[%clk 0:02:52]}  f5 {[%clk 0:02:54]} 13. Nxg7 {[%clk 0:02:32]}  Kxg7 {[%clk 0:02:53]} 14. f4 {[%clk 0:02:30]}  e4 {[%clk 0:02:50]} 15. Be3 {[%clk 0:01:52]}  Nc6 {[%clk 0:02:49]} 16. c3 {[%clk 0:01:50]}  Rad8 {[%clk 0:02:48]} 17. Bd4+ {[%clk 0:01:49]}  Nxd4 {[%clk 0:02:48]} 18. Qxd4+ {[%clk 0:01:49]}  Kg8 {[%clk 0:02:49]} 19. Qxa7 {[%clk 0:01:47]}  Qb5 {[%clk 0:02:33]} 20. Qf2 {[%clk 0:01:46]}  d4 {[%clk 0:02:27]} 21. cxd4 {[%clk 0:01:39]}  e3 {[%clk 0:02:27]} 22. Qg3+ {[%clk 0:01:16]}  Kh8 {[%clk 0:02:27]} 23. O-O-O {[%clk 0:01:16]}  Qe2 {[%clk 0:02:15]} 24. Kb1 {[%clk 0:00:30]}  Rc8 {[%clk 0:02:09]} 25. Rc1 {[%clk 0:00:28]}  Qd3+ {[%clk 0:01:56]} 26. Ka1 {[%clk 0:00:28]}  Ra8 {[%clk 0:01:48]} 27. Rc3 {[%clk 0:00:26]}  Rxa2+ {[%clk 0:01:00]} 28. Kxa2 {[%clk 0:00:27]}  Ra8+ {[%clk 0:01:00]} 29. Kb3 {[%clk 0:00:27]}  Qb5+ {[%clk 0:01:00]} 30. Kc2 {[%clk 0:00:27]}  Qa4+ {[%clk 0:01:00]} 31. Kd3 {[%clk 0:00:21]}  Qb5+ {[%clk 0:01:00]} 32. Kc2 {[%clk 0:00:10]}  Qa4+ {[%clk 0:01:00]} 33. Kd3 {[%clk 0:00:03]}  Qb5+ {[%clk 0:01:00]} 34. Kc2 {[%clk 0:00:04]} 1/2-1/2


[Site "https://www.chess.com"]

[Event "Titled Tuesday Blitz March 15 Early 2022"]
[White "Tsatsalashvili, Keti"]
[Black "Winkels, Marcel"]
[WhiteFideId "13603434"]
[BlackFideId "1003887"]
[WhiteElo "2246"]
[BlackElo "1900"]
[Result "1-0"]
[Round "10"]
[TimeControl "180+1"]
[Date "2022.03.15"]
[WhiteClock "0:00:46"]
[BlackClock "0:00:40"]

1. d4 {[%clk 0:03:00]}  Nf6 {[%clk 0:02:59]} 2. c4 {[%clk 0:03:00]}  c5 {[%clk 0:02:59]} 3. d5 {[%clk 0:03:00]}  b5 {[%clk 0:03:00]} 4. cxb5 {[%clk 0:02:58]}  a6 {[%clk 0:02:59]} 5. b6 {[%clk 0:02:58]}  Qxb6 {[%clk 0:02:55]} 6. Nc3 {[%clk 0:02:57]}  d6 {[%clk 0:02:55]} 7. a4 {[%clk 0:02:56]}  g6 {[%clk 0:02:53]} 8. Nf3 {[%clk 0:02:55]}  Bg7 {[%clk 0:02:52]} 9. a5 {[%clk 0:02:55]}  Qc7 {[%clk 0:02:45]} 10. Nd2 {[%clk 0:02:55]}  O-O {[%clk 0:02:42]} 11. Nc4 {[%clk 0:02:55]}  Bb7 {[%clk 0:02:41]} 12. g3 {[%clk 0:02:48]}  Nbd7 {[%clk 0:02:40]} 13. Bg2 {[%clk 0:02:47]}  Rab8 {[%clk 0:02:32]} 14. O-O {[%clk 0:02:45]}  Ba8 {[%clk 0:02:32]} 15. e4 {[%clk 0:02:41]}  Rb4 {[%clk 0:02:30]} 16. Qe2 {[%clk 0:02:35]}  Rfb8 {[%clk 0:02:11]} 17. Kh1 {[%clk 0:02:28]}  e6 {[%clk 0:01:57]} 18. dxe6 {[%clk 0:02:23]}  fxe6 {[%clk 0:01:56]} 19. Bf4 {[%clk 0:02:17]}  Ne5 {[%clk 0:01:42]} 20. Bxe5 {[%clk 0:02:06]}  dxe5 {[%clk 0:01:41]} 21. Nb6 {[%clk 0:01:56]}  Nd7 {[%clk 0:01:33]} 22. Nca4 {[%clk 0:01:55]}  Bc6 {[%clk 0:01:30]} 23. Rfd1 {[%clk 0:01:40]}  Bb5 {[%clk 0:01:13]} 24. Qg4 {[%clk 0:01:18]}  Nf8 {[%clk 0:01:03]} 25. Rdc1 {[%clk 0:01:01]}  c4 {[%clk 0:00:49]} 26. Bf1 {[%clk 0:00:47]}  Qc5 {[%clk 0:00:40]} 27. Nxc5 {[%clk 0:00:46]} 1-0


[Site "https://www.chess.com"]

[Event "Titled Tuesday Blitz March 15 Early 2022"]
[White "Vokarev, Sergey"]
[Black "Shkapenko, Pavel"]
[WhiteFideId "4119711"]
[BlackFideId "4151933"]
[WhiteElo "2398"]
[BlackElo "2386"]
[Result "1-0"]
[Round "10"]
[TimeControl "180+1"]
[Date "2022.03.15"]
[WhiteClock "0:00:36"]
[BlackClock "0:00:10"]

1. e4 {[%clk 0:02:53]}  e5 {[%clk 0:02:14]} 2. Nf3 {[%clk 0:02:50]}  Nc6 {[%clk 0:02:12]} 3. Bb5 {[%clk 0:02:50]}  Bc5 {[%clk 0:02:10]} 4. O-O {[%clk 0:02:46]}  d6 {[%clk 0:02:09]} 5. d4 {[%clk 0:02:45]}  exd4 {[%clk 0:02:08]} 6. Nxd4 {[%clk 0:02:45]}  Ne7 {[%clk 0:02:07]} 7. Nc3 {[%clk 0:02:43]}  O-O {[%clk 0:01:51]} 8. Nxc6 {[%clk 0:02:42]}  bxc6 {[%clk 0:01:52]} 9. Bd3 {[%clk 0:02:42]}  f5 {[%clk 0:01:52]} 10. exf5 {[%clk 0:02:37]}  Nxf5 {[%clk 0:01:48]} 11. Na4 {[%clk 0:02:27]}  Bd4 {[%clk 0:01:47]} 12. c3 {[%clk 0:02:27]}  Be5 {[%clk 0:01:45]} 13. f4 {[%clk 0:02:25]}  Bf6 {[%clk 0:01:43]} 14. Qf3 {[%clk 0:02:16]}  Bd7 {[%clk 0:01:37]} 15. Bd2 {[%clk 0:02:14]}  c5 {[%clk 0:01:37]} 16. b3 {[%clk 0:02:12]}  Ne7 {[%clk 0:01:34]} 17. Rae1 {[%clk 0:02:09]}  Bc6 {[%clk 0:01:33]} 18. Be4 {[%clk 0:02:08]}  Qd7 {[%clk 0:01:28]} 19. Bxc6 {[%clk 0:02:06]}  Qxc6 {[%clk 0:01:23]} 20. Qxc6 {[%clk 0:02:00]}  Nxc6 {[%clk 0:01:24]} 21. g3 {[%clk 0:01:56]}  Rae8 {[%clk 0:01:16]} 22. Kg2 {[%clk 0:01:55]}  Kf7 {[%clk 0:01:15]} 23. Kf3 {[%clk 0:01:54]}  Ne7 {[%clk 0:01:12]} 24. Re2 {[%clk 0:01:49]}  Nd5 {[%clk 0:01:12]} 25. Rfe1 {[%clk 0:01:46]}  Rxe2 {[%clk 0:01:12]} 26. Rxe2 {[%clk 0:01:46]}  Nb6 {[%clk 0:01:13]} 27. Nb2 {[%clk 0:01:41]}  Nd5 {[%clk 0:01:09]} 28. Na4 {[%clk 0:01:36]}  Nb6 {[%clk 0:01:09]} 29. Nb2 {[%clk 0:01:34]}  Nd5 {[%clk 0:01:09]} 30. Nd1 {[%clk 0:01:31]}  Nb6 {[%clk 0:00:48]} 31. Ne3 {[%clk 0:01:25]}  g6 {[%clk 0:00:27]} 32. c4 {[%clk 0:01:24]}  Bd4 {[%clk 0:00:25]} 33. Nc2 {[%clk 0:01:22]}  Bf6 {[%clk 0:00:25]} 34. h3 {[%clk 0:01:17]}  Re8 {[%clk 0:00:24]} 35. Rxe8 {[%clk 0:01:17]}  Kxe8 {[%clk 0:00:25]} 36. Ke4 {[%clk 0:01:15]}  Kf7 {[%clk 0:00:25]} 37. g4 {[%clk 0:01:14]}  Ke6 {[%clk 0:00:25]} 38. Ne3 {[%clk 0:01:14]}  c6 {[%clk 0:00:25]} 39. f5+ {[%clk 0:01:14]}  gxf5+ {[%clk 0:00:26]} 40. gxf5+ {[%clk 0:01:13]}  Kf7 {[%clk 0:00:26]} 41. Ba5 {[%clk 0:01:11]}  Bd4 {[%clk 0:00:25]} 42. Bxb6 {[%clk 0:01:08]}  axb6 {[%clk 0:00:25]} 43. Ng4 {[%clk 0:01:08]}  h5 {[%clk 0:00:23]} 44. Nh2 {[%clk 0:01:07]}  Kf6 {[%clk 0:00:21]} 45. Nf3 {[%clk 0:01:07]}  Bc3 {[%clk 0:00:21]} 46. a4 {[%clk 0:01:03]}  Bb4 {[%clk 0:00:22]} 47. Nh4 {[%clk 0:00:58]}  Be1 {[%clk 0:00:22]} 48. Nf3 {[%clk 0:00:58]}  Bb4 {[%clk 0:00:21]} 49. Nh4 {[%clk 0:00:56]}  Be1 {[%clk 0:00:21]} 50. Ng2 {[%clk 0:00:54]}  Bb4 {[%clk 0:00:20]} 51. Nf4 {[%clk 0:00:53]}  Kg5 {[%clk 0:00:19]} 52. h4+ {[%clk 0:00:49]}  Kh6 {[%clk 0:00:14]} 53. f6 {[%clk 0:00:47]}  Bd2 {[%clk 0:00:11]} 54. f7 {[%clk 0:00:39]}  Kg7 {[%clk 0:00:10]} 55. Nxh5+ {[%clk 0:00:39]}  Kxf7 {[%clk 0:00:11]} 56. Nf4 {[%clk 0:00:36]}  Bxf4 {[%clk 0:00:11]} 57. Kxf4 {[%clk 0:00:36]}  d5 {[%clk 0:00:12]} 58. cxd5 {[%clk 0:00:32]}  cxd5 {[%clk 0:00:12]} 59. Ke5 {[%clk 0:00:32]}  d4 {[%clk 0:00:12]} 60. Ke4 {[%clk 0:00:33]}  Kg6 {[%clk 0:00:12]} 61. b4 {[%clk 0:00:33]}  cxb4 {[%clk 0:00:09]} 62. Kxd4 {[%clk 0:00:33]}  Kh5 {[%clk 0:00:09]} 63. Kc4 {[%clk 0:00:34]}  Kxh4 {[%clk 0:00:09]} 64. Kxb4 {[%clk 0:00:34]}  Kg5 {[%clk 0:00:08]} 65. Kb5 {[%clk 0:00:35]}  Kf5 {[%clk 0:00:09]} 66. Kxb6 {[%clk 0:00:36]}  Kf6 {[%clk 0:00:10]} 67. a5 {[%clk 0:00:36]} 1-0


[Site "https://www.chess.com"]

[Event "Titled Tuesday Blitz March 15 Early 2022"]
[White "Weetik, Vjacheslav"]
[Black "Araujo Filho, Luiz Antonio Coel"]
[WhiteFideId "4153472"]
[BlackFideId "2130661"]
[WhiteElo "2469"]
[BlackElo "2202"]
[Result "1-0"]
[Round "10"]
[TimeControl "180+1"]
[Date "2022.03.15"]
[WhiteClock "0:01:26"]
[BlackClock "0:00:03"]

1. e4 {[%clk 0:02:59]}  c6 {[%clk 0:02:59]} 2. d4 {[%clk 0:02:59]}  d5 {[%clk 0:02:59]} 3. e5 {[%clk 0:02:59]}  Bf5 {[%clk 0:02:59]} 4. h4 {[%clk 0:02:59]}  h5 {[%clk 0:02:58]} 5. Bg5 {[%clk 0:02:59]}  Qb6 {[%clk 0:02:55]} 6. Bd3 {[%clk 0:03:00]}  Bxd3 {[%clk 0:02:54]} 7. Qxd3 {[%clk 0:03:01]}  e6 {[%clk 0:02:55]} 8. Nd2 {[%clk 0:03:01]}  c5 {[%clk 0:02:49]} 9. c4 {[%clk 0:03:00]}  cxd4 {[%clk 0:02:47]} 10. cxd5 {[%clk 0:03:00]}  exd5 {[%clk 0:02:45]} 11. Ngf3 {[%clk 0:02:57]}  Be7 {[%clk 0:01:45]} 12. O-O {[%clk 0:02:56]}  Bxg5 {[%clk 0:01:39]} 13. Nxg5 {[%clk 0:02:56]}  Ne7 {[%clk 0:01:39]} 14. e6 {[%clk 0:02:52]}  f6 {[%clk 0:01:37]} 15. Nf7 {[%clk 0:02:49]}  O-O {[%clk 0:01:24]} 16. Rae1 {[%clk 0:02:31]}  Nbc6 {[%clk 0:01:18]} 17. Qf3 {[%clk 0:02:29]}  Ne5 {[%clk 0:01:05]} 18. Rxe5 {[%clk 0:02:27]}  fxe5 {[%clk 0:01:02]} 19. Qxh5 {[%clk 0:02:27]}  Qxe6 {[%clk 0:01:01]} 20. Ng5 {[%clk 0:02:17]}  Qh6 {[%clk 0:00:58]} 21. Qg4 {[%clk 0:02:09]}  Rf4 {[%clk 0:00:51]} 22. Qd7 {[%clk 0:02:08]}  Rxh4 {[%clk 0:00:48]} 23. Nh3 {[%clk 0:02:04]}  Qf6 {[%clk 0:00:39]} 24. Nf3 {[%clk 0:02:00]}  Rh5 {[%clk 0:00:30]} 25. Qg4 {[%clk 0:01:51]}  Qf5 {[%clk 0:00:27]} 26. Qg3 {[%clk 0:01:50]}  Rf8 {[%clk 0:00:23]} 27. Re1 {[%clk 0:01:48]}  Nc6 {[%clk 0:00:19]} 28. Nfg5 {[%clk 0:01:44]}  e4 {[%clk 0:00:15]} 29. Qd6 {[%clk 0:01:36]}  d3 {[%clk 0:00:12]} 30. Qg3 {[%clk 0:01:32]}  Ne5 {[%clk 0:00:07]} 31. f4 {[%clk 0:01:31]}  exf3 {[%clk 0:00:06]} 32. Rxe5 {[%clk 0:01:30]}  f2+ {[%clk 0:00:06]} 33. Nxf2 {[%clk 0:01:26]}  Qxf2+ {[%clk 0:00:03]} 34. Qxf2 {[%clk 0:01:26]}  Rxf2 {[%clk 0:00:04]} 35. Kxf2 {[%clk 0:01:27]}  d2 {[%clk 0:00:03]} 36. Ke2 {[%clk 0:01:26]} 1-0


[Site "https://www.chess.com"]

[Event "Titled Tuesday Blitz March 15 Early 2022"]
[White "Weishaeutel, Moritz"]
[Black "Miszler, Levente"]
[WhiteFideId "12967300"]
[BlackFideId "763276"]
[WhiteElo "2002"]
[BlackElo "1966"]
[Result "1-0"]
[Round "10"]
[TimeControl "180+1"]
[Date "2022.03.15"]
[WhiteClock "0:00:54"]
[BlackClock "0:01:03"]

1. e4 {[%clk 0:03:00]}  e6 {[%clk 0:02:59]} 2. d4 {[%clk 0:02:59]}  d5 {[%clk 0:02:58]} 3. exd5 {[%clk 0:03:00]}  exd5 {[%clk 0:02:57]} 4. Nf3 {[%clk 0:03:01]}  Nf6 {[%clk 0:02:52]} 5. Bd3 {[%clk 0:03:01]}  Bd6 {[%clk 0:02:47]} 6. Qe2+ {[%clk 0:03:00]}  Qe7 {[%clk 0:02:47]} 7. Qxe7+ {[%clk 0:03:00]}  Kxe7 {[%clk 0:02:48]} 8. O-O {[%clk 0:03:01]}  h6 {[%clk 0:02:48]} 9. Re1+ {[%clk 0:03:00]}  Be6 {[%clk 0:02:48]} 10. c4 {[%clk 0:02:58]}  c6 {[%clk 0:02:45]} 11. Nc3 {[%clk 0:02:57]}  Re8 {[%clk 0:02:40]} 12. Ne5 {[%clk 0:02:36]}  Nbd7 {[%clk 0:02:36]} 13. f4 {[%clk 0:02:34]}  g6 {[%clk 0:02:30]} 14. f5 {[%clk 0:02:20]}  gxf5 {[%clk 0:02:28]} 15. Bxh6 {[%clk 0:02:20]}  Rh8 {[%clk 0:02:25]} 16. Bg5 {[%clk 0:02:15]}  Rag8 {[%clk 0:02:23]} 17. h4 {[%clk 0:02:14]}  Kf8 {[%clk 0:02:09]} 18. cxd5 {[%clk 0:02:05]}  cxd5 {[%clk 0:01:58]} 19. Nb5 {[%clk 0:01:33]}  Bxe5 {[%clk 0:01:41]} 20. dxe5 {[%clk 0:01:33]}  Ne4 {[%clk 0:01:40]} 21. Bxe4 {[%clk 0:01:32]}  fxe4 {[%clk 0:01:38]} 22. Rac1 {[%clk 0:01:29]}  Nxe5 {[%clk 0:01:32]} 23. Re2 {[%clk 0:01:13]}  Ng4 {[%clk 0:01:18]} 24. Rc7 {[%clk 0:01:08]}  f6 {[%clk 0:01:17]} 25. Bf4 {[%clk 0:01:04]}  Rxh4 {[%clk 0:01:16]} 26. Nd4 {[%clk 0:01:00]}  Bf7 {[%clk 0:01:09]} 27. Bd6+ {[%clk 0:00:53]}  Kg7 {[%clk 0:01:07]} 28. Nf5+ {[%clk 0:00:53]}  Kg6 {[%clk 0:01:03]} 29. Nxh4+ {[%clk 0:00:54]} 1-0


[Site "https://www.chess.com"]

[Event "Titled Tuesday Blitz March 15 Early 2022"]
[White "Xu, Yi"]
[Black "Esipenko, Andrey"]
[WhiteFideId "8605564"]
[BlackFideId "24175439"]
[WhiteElo "2866"]
[BlackElo "2968"]
[Result "1/2-1/2"]
[Round "10"]
[TimeControl "180+1"]
[Date "2022.03.15"]
[WhiteClock "0:00:27"]
[BlackClock "0:00:56"]

1. e4 {[%clk 0:02:59]}  c5 {[%clk 0:02:51]} 2. Nf3 {[%clk 0:02:59]}  d6 {[%clk 0:02:49]} 3. d4 {[%clk 0:02:59]}  cxd4 {[%clk 0:02:49]} 4. Nxd4 {[%clk 0:03:00]}  Nf6 {[%clk 0:02:49]} 5. Nc3 {[%clk 0:03:00]}  a6 {[%clk 0:02:50]} 6. Be3 {[%clk 0:03:00]}  e5 {[%clk 0:02:49]} 7. Nb3 {[%clk 0:03:00]}  Be7 {[%clk 0:02:50]} 8. f3 {[%clk 0:02:59]}  O-O {[%clk 0:02:45]} 9. Qd2 {[%clk 0:02:58]}  Be6 {[%clk 0:02:46]} 10. O-O-O {[%clk 0:02:58]}  Nbd7 {[%clk 0:02:46]} 11. g4 {[%clk 0:02:57]}  b5 {[%clk 0:02:45]} 12. g5 {[%clk 0:02:57]}  Nh5 {[%clk 0:02:45]} 13. Kb1 {[%clk 0:02:54]}  Nb6 {[%clk 0:02:42]} 14. Na5 {[%clk 0:02:53]}  Rc8 {[%clk 0:02:40]} 15. a3 {[%clk 0:02:47]}  Qc7 {[%clk 0:02:38]} 16. Nd5 {[%clk 0:02:20]}  Nxd5 {[%clk 0:02:35]} 17. exd5 {[%clk 0:02:20]}  Bxd5 {[%clk 0:02:18]} 18. Qxd5 {[%clk 0:02:20]}  Qxa5 {[%clk 0:02:18]} 19. Bd3 {[%clk 0:02:03]}  g6 {[%clk 0:02:17]} 20. Be4 {[%clk 0:01:54]}  Qc7 {[%clk 0:02:12]} 21. Qb3 {[%clk 0:01:40]}  Rfe8 {[%clk 0:02:00]} 22. Bd5 {[%clk 0:01:40]}  Bf8 {[%clk 0:01:59]} 23. Rhf1 {[%clk 0:01:32]}  Re7 {[%clk 0:01:57]} 24. Rc1 {[%clk 0:01:31]}  Rb8 {[%clk 0:01:53]} 25. Qd3 {[%clk 0:01:24]}  Bg7 {[%clk 0:01:51]} 26. Qe4 {[%clk 0:01:21]}  a5 {[%clk 0:01:42]} 27. c3 {[%clk 0:01:19]}  Nf4 {[%clk 0:01:25]} 28. Bxf4 {[%clk 0:01:11]}  exf4 {[%clk 0:01:25]} 29. Qxf4 {[%clk 0:01:11]}  Qc5 {[%clk 0:01:25]} 30. Rfd1 {[%clk 0:01:06]}  Be5 {[%clk 0:01:25]} 31. Qd2 {[%clk 0:01:00]}  Qb6 {[%clk 0:01:14]} 32. f4 {[%clk 0:00:58]}  Bg7 {[%clk 0:01:14]} 33. Re1 {[%clk 0:00:58]}  Rc7 {[%clk 0:01:14]} 34. Re4 {[%clk 0:00:55]}  Qc5 {[%clk 0:01:13]} 35. Rce1 {[%clk 0:00:53]}  h5 {[%clk 0:01:10]} 36. f5 {[%clk 0:00:39]}  gxf5 {[%clk 0:01:08]} 37. Re8+ {[%clk 0:00:39]}  Rxe8 {[%clk 0:01:06]} 38. Rxe8+ {[%clk 0:00:39]}  Kh7 {[%clk 0:01:06]} 39. g6+ {[%clk 0:00:34]}  fxg6 {[%clk 0:00:56]} 40. Bg8+ {[%clk 0:00:32]}  Kh8 {[%clk 0:00:56]} 41. Bd5+ {[%clk 0:00:28]}  Kh7 {[%clk 0:00:56]} 42. Bg8+ {[%clk 0:00:27]}  Kh8 {[%clk 0:00:56]} 43. Bd5+ {[%clk 0:00:27]}  Kh7 {[%clk 0:00:56]} 1/2-1/2


[Site "https://www.chess.com"]

[Event "Titled Tuesday Blitz March 15 Early 2022"]
[White "Borodavkin, Anatoly"]
[Black "Farmani Anosheh, Armin"]
[WhiteFideId "14150662"]
[BlackFideId "24613240"]
[WhiteElo "1845"]
[BlackElo "2289"]
[Result "1/2-1/2"]
[Round "11"]
[TimeControl "180+1"]
[Date "2022.03.15"]
[WhiteClock "0:00:15"]
[BlackClock "0:00:10"]

1. e4 {[%clk 0:03:00]}  c5 {[%clk 0:02:59]} 2. Nc3 {[%clk 0:03:00]}  d6 {[%clk 0:03:00]} 3. g3 {[%clk 0:03:01]}  Nc6 {[%clk 0:03:00]} 4. Bg2 {[%clk 0:03:02]}  g6 {[%clk 0:03:00]} 5. d3 {[%clk 0:03:02]}  Bg7 {[%clk 0:03:01]} 6. f4 {[%clk 0:03:02]}  e6 {[%clk 0:03:01]} 7. Nf3 {[%clk 0:03:01]}  Nge7 {[%clk 0:03:02]} 8. Be3 {[%clk 0:03:01]}  Nd4 {[%clk 0:03:01]} 9. O-O {[%clk 0:03:00]}  O-O {[%clk 0:03:01]} 10. e5 {[%clk 0:03:00]}  Nef5 {[%clk 0:02:57]} 11. Bf2 {[%clk 0:03:00]}  Nxf3+ {[%clk 0:02:53]} 12. Qxf3 {[%clk 0:03:00]}  Nd4 {[%clk 0:02:52]} 13. Qd1 {[%clk 0:03:01]}  dxe5 {[%clk 0:02:51]} 14. fxe5 {[%clk 0:03:01]}  Bxe5 {[%clk 0:02:43]} 15. Ne4 {[%clk 0:02:58]}  f5 {[%clk 0:02:26]} 16. Nxc5 {[%clk 0:02:53]}  Qc7 {[%clk 0:02:25]} 17. b4 {[%clk 0:02:36]}  Rb8 {[%clk 0:01:58]} 18. c3 {[%clk 0:02:33]}  Nb5 {[%clk 0:01:55]} 19. d4 {[%clk 0:02:24]}  Bg7 {[%clk 0:01:53]} 20. Qb3 {[%clk 0:02:19]}  Kh8 {[%clk 0:01:48]} 21. a4 {[%clk 0:02:17]}  Nd6 {[%clk 0:01:27]} 22. Rae1 {[%clk 0:02:14]}  b6 {[%clk 0:00:43]} 23. Nxe6 {[%clk 0:02:09]}  Bxe6 {[%clk 0:00:41]} 24. Rxe6 {[%clk 0:02:09]}  Rbc8 {[%clk 0:00:26]} 25. Rfe1 {[%clk 0:02:05]}  Ne4 {[%clk 0:00:26]} 26. Bxe4 {[%clk 0:02:00]}  fxe4 {[%clk 0:00:27]} 27. R6xe4 {[%clk 0:02:00]}  Qxc3 {[%clk 0:00:22]} 28. Qxc3 {[%clk 0:01:36]}  Rxc3 {[%clk 0:00:23]} 29. Re8 {[%clk 0:01:36]}  Kg8 {[%clk 0:00:22]} 30. d5 {[%clk 0:01:31]}  Rd3 {[%clk 0:00:22]} 31. R8e7 {[%clk 0:01:17]}  Rxd5 {[%clk 0:00:20]} 32. Rxa7 {[%clk 0:01:17]}  Rd2 {[%clk 0:00:20]} 33. Bxb6 {[%clk 0:01:07]}  Rc8 {[%clk 0:00:15]} 34. b5 {[%clk 0:00:53]}  h5 {[%clk 0:00:09]} 35. Rc7 {[%clk 0:00:49]}  Bd4+ {[%clk 0:00:09]} 36. Kh1 {[%clk 0:00:38]}  Rf8 {[%clk 0:00:08]} 37. Bxd4 {[%clk 0:00:36]}  Rxd4 {[%clk 0:00:08]} 38. Ree7 {[%clk 0:00:28]}  Rf2 {[%clk 0:00:06]} 39. Re1 {[%clk 0:00:15]}  Rdd2 {[%clk 0:00:06]} 40. b6 {[%clk 0:00:14]}  Rxh2+ {[%clk 0:00:06]} 41. Kg1 {[%clk 0:00:14]}  Rdg2+ {[%clk 0:00:06]} 42. Kf1 {[%clk 0:00:14]}  Rf2+ {[%clk 0:00:07]} 43. Kg1 {[%clk 0:00:15]}  Rfg2+ {[%clk 0:00:08]} 44. Kf1 {[%clk 0:00:15]}  Rf2+ {[%clk 0:00:09]} 45. Kg1 {[%clk 0:00:15]}  Rfg2+ {[%clk 0:00:10]} 1/2-1/2


[Site "https://www.chess.com"]